fUSD/lending_fUSD_20260219
["ID","MTS","AMOUNT","RATE_DAILY","PERIOD"]
[405977417,1771487497730,-522.00555028,0.00043835,120]
[405977418,1771487497739,-500.0,0.00043835,120]
[405977419,1771487497748,-304.74956745,0.00043835,120]
[405977420,1771487497757,-504.57497705,0.00043835,120]
[405977421,1771487497766,-560.46021294,0.00043835,120]
[405977422,1771487497775,-500.0,0.00043835,120]
[405977423,1771487497784,-518.7487238,0.00043835,120]
[405977424,1771487497793,-565.06099011,0.00043835,68]
[405977425,1771487497802,-558.28562089,0.00043835,120]
[405977426,1771487497811,-514.12019334,0.00043835,120]
[405977427,1771487497820,-517.40845717,0.00043835,120]
[405977428,1771487497828,-505.46713152,0.00043835,120]
[405977429,1771487497837,-515.33062187,0.00043835,120]
[405977430,1771487497846,-520.96586739,0.00043835,120]
[405977431,1771487497855,-623.27334138,0.00043835,120]
[405977432,1771487497864,-525.05638061,0.00043835,120]
[405977433,1771487497874,-615.71188362,0.00043835,120]
[405977434,1771487497884,-513.36035294,0.00043835,30]
[405977435,1771487497894,-528.69,0.00043835,120]
[405977436,1771487497903,-500.0,0.00043835,120]
[405977437,1771487497913,-500.0,0.00043835,120]
[405977438,1771487497924,-506.52731403,0.00043835,120]
[405977439,1771487497935,-531.17899151,0.00043835,120]
[405977440,1771487497945,-513.71698379,0.00043835,120]
[405977441,1771487497954,-515.42369021,0.00043835,120]
[405977442,1771487497963,-538.02,0.00043835,120]
[405977443,1771487497973,-538.02,0.00043835,120]
[405977444,1771487497983,-543.47233314,0.00043835,120]
[405977445,1771487497992,-538.02,0.00043835,120]
[405977446,1771487498001,-517.69456699,0.00043835,120]
[405977447,1771487498011,-538.02,0.00043835,120]
[405977448,1771487498020,-570.70946438,0.00043835,120]
[405977449,1771487498029,-538.02,0.00043835,120]
[405977450,1771487498038,-538.02,0.00043835,120]
[405977451,1771487498047,-538.02,0.00043835,120]
[405977452,1771487498056,-538.02,0.00043835,120]
[405977453,1771487498066,-538.02,0.00043835,120]
[405977454,1771487498075,-538.02,0.00043835,120]
[405977455,1771487498084,-510.93682711,0.00043835,120]
[405977456,1771487498093,-538.02,0.00043835,120]
[405977457,1771487498102,-500.0,0.00043835,120]
[405977458,1771487498116,-538.02,0.00043835,120]
[405977459,1771487498124,-270.09141292,0.00043835,120]
[405977460,1771487498134,-538.02,0.00043835,120]
[405977461,1771487498143,-538.02,0.00043835,120]
[405977462,1771487498152,-538.02,0.00043835,120]
[405977463,1771487498162,-538.02,0.00043835,120]
[405977464,1771487498171,-538.02,0.00043835,120]
[405977465,1771487498181,-538.02,0.00043835,120]
[405977466,1771487498190,-500.0,0.00043835,120]
[405977467,1771487498199,-538.02,0.00043835,120]
[405977468,1771487498208,-538.02,0.00043835,120]
[405977469,1771487498217,-538.02,0.00043835,120]
[405977470,1771487498227,-538.02,0.00043835,120]
[405977471,1771487498237,-538.02,0.00043835,120]
[405977472,1771487498246,-538.14964145,0.00043835,120]
[405977473,1771487498255,-489.03219052,0.00043835,120]
[405977474,1771487498264,-500.0,0.00043835,120]
[405977475,1771487498274,-267.14087282,0.00043835,120]
[405977476,1771487498283,-510.08048527,0.00043835,120]
[405977477,1771487498292,-517.29545556,0.00043835,120]
[405977478,1771487498301,-517.8615117,0.00043835,120]
[405977479,1771487498310,-570.31714273,0.00043835,120]
[405977480,1771487498319,-546.24039836,0.00043835,120]
[405977481,1771487498328,-529.63844443,0.00043835,120]
[405977482,1771487498338,-546.01853918,0.00043835,120]
[405977483,1771487498347,-357.71727451,0.00043835,120]
[405977484,1771487498356,-517.94316819,0.00043835,120]
[405977485,1771487498365,-557.8353475,0.00043835,120]
[405977486,1771487498374,-500.0,0.00043835,120]
[405977487,1771487498383,-229.69620313,0.00043835,120]
[405977488,1771487498392,-500.0,0.00043835,120]
[405977489,1771487498401,-553.61526902,0.00043835,120]
[405977490,1771487498533,-221.7962662,0.00043835,120]
[405977491,1771487498542,-524.44293595,0.00043835,120]
[405977492,1771487498551,-566.52134059,0.00043835,120]
[405977493,1771487498561,-515.4633247,0.00043835,120]
[405977494,1771487498570,-532.45715129,0.00043835,120]
[405977495,1771487498579,-512.96565283,0.00043835,120]
[405977496,1771487498588,-517.81538173,0.00043835,120]
[405977497,1771487498597,-525.85548168,0.00043835,120]
[405977498,1771487498606,-516.98784471,0.00043835,120]
[405977499,1771487498615,-560.08781322,0.00043835,120]
[405977500,1771487498625,-521.56618688,0.00043835,120]
[405977501,1771487498634,-500.0,0.00043835,120]
[405977502,1771487498643,-175.10070102,0.00043835,120]
[405977503,1771487498653,-583.32614356,0.00043835,120]
[405977504,1771487498662,-500.0,0.00043835,120]
[405977505,1771487498671,-500.0,0.00043835,120]
[405977506,1771487498679,-500.0,0.00043835,120]
[405977507,1771487498688,-500.0,0.00043835,120]
[405977508,1771487498698,-500.0,0.00043835,120]
[405977509,1771487498707,-500.0,0.00043835,120]
[405977510,1771487498716,-500.0,0.00043835,120]
[405977511,1771487498725,-500.0,0.00043835,120]
[405977512,1771487498735,-500.0,0.00043835,120]
[405977513,1771487498744,-274.92972059,0.00043835,120]
[405977514,1771487498753,-511.51305999,0.00043835,120]
[405977515,1771487498762,-524.81242284,0.00043835,120]
[405977516,1771487498772,-497.63415156,0.00043835,120]
[405977517,1771487498782,-500.0,0.00043835,120]
[405977518,1771487498791,-485.0,0.00043835,120]
[405977519,1771487498800,-500.0,0.00043835,120]
[405977520,1771487498809,-500.0,0.00043835,120]
[405977521,1771487498819,-500.0,0.00043835,120]
[405977522,1771487498827,-500.0,0.00043835,120]
[405977523,1771487498836,-500.0,0.00043835,120]
[405977524,1771487498845,-500.0,0.00043835,120]
[405977525,1771487498855,-500.0,0.00043835,120]
[405977526,1771487498864,-500.0,0.00043835,120]
[405977527,1771487498873,-500.0,0.00043835,120]
[405977528,1771487498882,-517.18306904,0.00043835,120]
[405977529,1771487498891,-500.0,0.00043835,120]
[405977530,1771487498900,-500.0,0.00043835,120]
[405977531,1771487498909,-500.0,0.00043835,120]
[405977532,1771487498918,-500.0,0.00043835,120]
[405977533,1771487498927,-500.34350391,0.00043835,120]
[405977534,1771487498936,-647.06901745,0.00043835,120]
[405977535,1771487498946,-520.3245181,0.00043835,120]
[405977536,1771487498955,-514.2497045,0.00043835,120]
[405977537,1771487498964,-523.84717404,0.00043835,120]
[405977538,1771487498974,-516.36145072,0.00043835,120]
[405977539,1771487498983,-511.41344659,0.00043835,120]
[405977540,1771487498992,-524.14696864,0.00043835,120]
[405977541,1771487499001,-500.0,0.00043835,120]
[405977542,1771487499011,-500.0,0.00043835,120]
[405977543,1771487499020,-500.0,0.00043835,120]
[405977544,1771487499029,-500.0,0.00043835,120]
[405977545,1771487499038,-500.0,0.00043835,120]
[405977546,1771487499048,-500.0,0.00043835,120]
[405977547,1771487499057,-500.0,0.00043835,120]
[405977548,1771487499065,-500.0,0.00043835,120]
[405977549,1771487499074,-500.0,0.00043835,120]
[405977550,1771487499084,-500.0,0.00043835,120]
[405977551,1771487499093,-556.10818285,0.00043835,120]
[405977552,1771487499102,-500.0,0.00043835,120]
[405977553,1771487499113,-328.52565833,0.00043835,120]
[405977554,1771487499122,-500.0,0.00043835,120]
[405977555,1771487499131,-500.0,0.00043835,120]
[405977556,1771487499140,-500.0,0.00043835,120]
[405977557,1771487499149,-500.0,0.00043835,120]
[405977558,1771487499158,-500.0,0.00043835,120]
[405977559,1771487499167,-500.0,0.00043835,120]
[405977560,1771487499176,-500.0,0.00043835,120]
[405977561,1771487499185,-500.0,0.00043835,120]
[405977562,1771487499194,-500.0,0.00043835,120]
[405977563,1771487499203,-500.0,0.00043835,120]
[405977564,1771487499211,-500.0,0.00043835,120]
[405977565,1771487499221,-500.0,0.00043835,120]
[405977566,1771487499231,-500.0,0.00043835,120]
[405977567,1771487499240,-500.0,0.00043835,120]
[405977568,1771487499250,-500.0,0.00043835,120]
[405977569,1771487499259,-500.0,0.00043835,120]
[405977570,1771487499268,-500.0,0.00043835,120]
[405977571,1771487499277,-500.0,0.00043835,120]
[405977572,1771487499286,-500.0,0.00043835,120]
[405977573,1771487499296,-500.0,0.00043835,120]
[405977574,1771487499307,-500.0,0.00043835,120]
[405977575,1771487499315,-500.0,0.00043835,120]
[405977576,1771487499327,-636.84297794,0.00043835,120]
[405977577,1771487499337,-407.88350756,0.00043835,120]
[405977578,1771487499346,-500.0,0.00043835,120]
[405977579,1771487499355,-500.0,0.00043835,120]
[405977580,1771487499364,-500.0,0.00043835,120]
[405977581,1771487499374,-500.0,0.00043835,120]
[405977582,1771487499383,-500.0,0.00043835,120]
[405977583,1771487499392,-500.0,0.00043835,120]
[405977584,1771487499400,-500.0,0.00043835,120]
[405977585,1771487499410,-500.0,0.00043835,120]
[405977586,1771487499419,-505.38786232,0.00043835,120]
[405977587,1771487499428,-812.94,0.00043835,120]
[405977588,1771487499438,-812.94,0.00043835,120]
[405977589,1771487499447,-812.94,0.00043835,120]
[405977590,1771487499457,-812.94,0.00043835,120]
[405977591,1771487499465,-812.94,0.00043835,120]
[405977592,1771487499475,-812.94,0.00043835,120]
[405977593,1771487499484,-812.94,0.00043835,120]
[405977594,1771487499494,-812.94,0.00043835,120]
[405977595,1771487499504,-812.94,0.00043835,120]
[405977596,1771487499519,-812.94,0.00043835,120]
[405977597,1771487499528,-812.94,0.00043835,120]
[405977598,1771487499545,-812.94,0.00043835,120]
[405977599,1771487499554,-812.94,0.00043835,120]
[405977600,1771487499564,-812.94,0.00043835,120]
[405977601,1771487499574,-812.94,0.00043835,120]
[405977602,1771487499583,-812.94,0.00043835,120]
[405977603,1771487499593,-812.94,0.00043835,120]
[405977604,1771487499603,-812.94,0.00043835,120]
[405977605,1771487499612,-812.94,0.00043835,120]
[405977606,1771487499622,-812.94,0.00043835,120]
[405977607,1771487499631,-812.94,0.00043835,120]
[405977608,1771487499642,-812.94,0.00043835,120]
[405977609,1771487499651,-812.94,0.00043835,120]
[405977610,1771487499661,-813.15429268,0.00043835,120]
[405977611,1771487499670,-517.44143011,0.00043835,120]
[405977612,1771487499679,-518.25808693,0.00043835,30]
[405977613,1771487499688,-542.53200912,0.00043835,120]
[405977614,1771487499697,-518.95605688,0.00043835,120]
[405977615,1771487499707,-500.0,0.00043835,120]
[405977616,1771487499716,-499.15869126,0.00043835,120]
[405977617,1771487499725,-500.0,0.00043835,120]
[405977618,1771487499734,-500.0,0.00043835,120]
[405977619,1771487499743,-480.37,0.00043835,120]
[405977620,1771487499753,-532.01635493,0.00043835,120]
[405977621,1771487499762,-500.0,0.00043835,120]
[405977622,1771487499771,-500.0,0.00043835,120]
[405977623,1771487499780,-444.00245985,0.00043835,120]
[405977624,1771487499789,-504.99306546,0.00043835,120]
[405977625,1771487499798,-500.0,0.00043835,120]
[405977626,1771487499808,-181.92577503,0.00043835,120]
[405977627,1771487499817,-500.0,0.00043835,120]
[405977628,1771487499827,-181.66112389,0.00043835,120]
[405977629,1771487499837,-522.30102716,0.00043835,120]
[405977630,1771487499846,-552.69075089,0.00043835,120]
[405977631,1771487499856,-507.80369358,0.00043835,120]
[405977632,1771487499865,-504.96759921,0.00043835,120]
[405977633,1771487499874,-526.60848613,0.00043835,120]
[405977634,1771487499883,-593.90071719,0.00043835,120]
[405977635,1771487499892,-516.67296919,0.00043835,120]
[405977636,1771487499901,-506.41772106,0.00043835,120]
[405977637,1771487499910,-515.94469491,0.00043835,120]
[405977638,1771487499919,-500.0,0.00043835,120]
[405977639,1771487499928,-509.97472176,0.00043835,120]
[405977640,1771487499937,-646.76773769,0.00043835,120]
[405977641,1771487499946,-599.64860628,0.00043835,120]
[405977642,1771487499956,-524.74715526,0.00043835,120]
[405977643,1771487499967,-607.72109661,0.00043835,120]
[405977644,1771487499977,-500.0,0.00043835,120]
[405977645,1771487499988,-572.7683211,0.00043835,120]
[405977646,1771487499998,-540.34198549,0.00043835,120]
[405977647,1771487500006,-512.55499364,0.00043835,120]
[405977648,1771487500015,-516.85656416,0.00043835,120]
[405977649,1771487500025,-347.9968614,0.00043835,120]
[405977650,1771487500034,-518.1716966,0.00043835,120]
[405977651,1771487500043,-511.37073319,0.00043835,120]
[405977652,1771487500052,-507.12151551,0.00043835,120]
[405977653,1771487500062,-504.11941107,0.00043835,120]
[405977654,1771487500071,-563.05245108,0.00043835,120]
[405977655,1771487500080,-509.02092009,0.00043835,120]
[405977656,1771487500089,-512.62153397,0.00043835,120]
[405977657,1771487500100,-541.95952142,0.00043835,120]
[405977658,1771487500111,-501.6272175,0.00043835,120]
[405977659,1771487500121,-516.276106,0.00043835,120]
[405977660,1771487500131,-506.20720723,0.00043835,120]
[405977661,1771487500140,-520.19501319,0.00043835,120]
[405977662,1771487500149,-631.02089826,0.00043835,120]
[405977663,1771487500158,-541.70165858,0.00043835,120]
[405977664,1771487500167,-509.94805017,0.00043835,120]
[405977665,1771487500176,-602.81494228,0.00043835,120]
[405977666,1771487500186,-517.03491351,0.00043835,120]
[405977667,1771487500194,-500.0,0.00043835,120]
[405977668,1771487500203,-500.0,0.00043835,120]
[405977669,1771487500212,-322.51424032,0.00043835,120]
[405977670,1771487500220,-500.0,0.00043835,120]
[405977671,1771487500229,-262.71928287,0.00043835,120]
[405977672,1771487500238,-547.89731843,0.00043835,120]
[405977673,1771487500248,-500.0,0.00043835,120]
[405977674,1771487500257,-171.71563859,0.00043835,120]
[405977675,1771487500266,-510.56989507,0.00043835,120]
[405977676,1771487500275,-517.6002532,0.00043835,120]
[405977677,1771487500286,-515.50511177,0.00043835,120]
[405977678,1771487500306,-542.76279517,0.00043835,120]
[405977679,1771487500323,-507.906702,0.00043835,120]
[405977680,1771487500332,-500.0,0.00043835,120]
[405977681,1771487500342,-500.0,0.00043835,120]
[405977682,1771487500352,-468.35503509,0.00043835,120]
[405977683,1771487500367,-516.18874165,0.00043835,120]
[405977684,1771487500383,-513.48781716,0.00043835,120]
[405977685,1771487500392,-506.98939584,0.00043835,120]
[405977686,1771487500402,-583.58018615,0.00043835,120]
[405977687,1771487500411,-569.62014734,0.00043835,120]
[405977688,1771487500420,-511.37082496,0.00043835,120]
[405977689,1771487500429,-500.0,0.00043835,120]
[405977690,1771487500439,-376.86102165,0.00043835,120]
[405977691,1771487500448,-512.89422293,0.00043835,120]
[405977692,1771487500457,-491.51122569,0.00043835,120]
[405977693,1771487500467,-515.90798187,0.00043835,120]
[405977694,1771487500475,-500.0,0.00043835,90]
[405977695,1771487500486,-542.01795426,0.00043835,90]
[405977696,1771487500496,-533.69663365,0.00043835,120]
[405977697,1771487500505,-509.51103642,0.00043835,120]
[405977698,1771487500514,-405.51973928,0.00043835,120]
[405977699,1771487500523,-500.0,0.00043835,120]
[405977700,1771487500532,-280.08857394,0.00043835,120]
[405977701,1771487500542,-521.52344605,0.00043835,120]
[405977702,1771487500551,-522.75119475,0.00043835,120]
[405977703,1771487500561,-511.80829679,0.00043835,120]
[405977704,1771487500575,-525.26808984,0.00043835,120]
[405977705,1771487500584,-500.0,0.00043835,120]
[405977706,1771487500594,-500.0,0.00043835,120]
[405977707,1771487500604,-527.64839179,0.00043835,120]
[405977708,1771487500614,-505.91274285,0.00043835,120]
[405977709,1771487500624,-510.76908209,0.00043835,120]
[405977710,1771487500633,-516.61793813,0.00043835,120]
[405977711,1771487500754,-509.73900366,0.00043835,120]
[405977712,1771487500765,-512.6090448,0.00043835,120]
[405977713,1771487500774,-526.78426399,0.00043835,120]
[405977714,1771487500783,-176.89393194,0.00043835,120]
[405977715,1771487500793,-507.58888896,0.00043835,120]
[405977716,1771487500802,-506.64439689,0.00043835,120]
[405977717,1771487500812,-550.30654807,0.00043835,120]
[405977718,1771487500821,-505.08778298,0.00043835,120]
[405977719,1771487500830,-516.95283498,0.00043835,120]
[405977720,1771487500839,-507.73539618,0.00043835,120]
[405977721,1771487500848,-504.9327205,0.00043835,120]
[405977722,1771487500858,-455.82227555,0.00043835,120]
[405977723,1771487500867,-530.99238348,0.00043835,120]
[405977724,1771487500876,-508.79256972,0.00043835,120]
[405977725,1771487500886,-495.75659061,0.00043835,120]
[405977726,1771487500895,-508.65362771,0.00043835,120]
[405977727,1771487500904,-500.0,0.00043835,120]
[405977728,1771487500913,-497.50008856,0.00043835,120]
[405977729,1771487500922,-507.28478639,0.00043835,120]
[405977730,1771487500931,-511.71532836,0.00043835,120]
[405977731,1771487500939,-500.0,0.00043835,120]
[405977732,1771487500949,-249.93098003,0.00043835,120]
[405977733,1771487500958,-180.78559558,0.00043835,120]
[405977734,1771487500967,-516.41493459,0.00043835,120]
[405977735,1771487500976,-327.34488322,0.00043835,120]
[405977736,1771487500986,-500.0,0.00043835,120]
[405977737,1771487500997,-500.0,0.00043835,120]
[405977738,1771487501006,-516.02406689,0.00043835,120]
[405977739,1771487501015,-500.0,0.00043835,120]
[405977740,1771487501024,-500.0,0.00043835,120]
[405977741,1771487501033,-500.0,0.00043835,120]
[405977742,1771487501042,-500.0,0.00043835,120]
[405977743,1771487501051,-500.0,0.00043835,120]
[405977744,1771487501060,-500.0,0.00043835,120]
[405977745,1771487501069,-500.0,0.00043835,120]
[405977746,1771487501079,-509.9334097,0.00043835,120]
[405977747,1771487501088,-500.0,0.00043835,120]
[405977748,1771487501097,-234.21094974,0.00043835,120]
[405977749,1771487501106,-500.0,0.00043835,120]
[405977750,1771487501120,-500.0,0.00043835,120]
[405977751,1771487501130,-253.62466127,0.00043835,120]
[405977752,1771487501139,-178.14517144,0.00043835,120]
[405977753,1771487501148,-510.12184332,0.00043835,120]
[405977754,1771487501157,-167.19693749,0.00043835,120]
[405977755,1771487501167,-512.68787608,0.00043835,120]
[405977756,1771487501176,-548.96251705,0.00043835,120]
[405977757,1771487501187,-469.6478111,0.00043835,90]
[405977758,1771487501196,-500.0,0.00043835,120]
[405977759,1771487501205,-500.0,0.00043835,120]
[405977760,1771487501214,-500.0,0.00043835,120]
[405977761,1771487501223,-233.93235063,0.00043835,120]
[405977762,1771487501232,-500.0,0.00043835,120]
[405977763,1771487501242,-537.95504729,0.00043835,120]
[405977764,1771487501251,-539.5984415,0.00043835,120]
[405977765,1771487501260,-466.48541704,0.00043835,120]
[405977766,1771487501270,-510.54801452,0.00043835,120]
[405977767,1771487501279,-515.11826177,0.00043835,120]
[405977768,1771487501287,-504.09254856,0.00043835,120]
[405977769,1771487501296,-649.11468043,0.00043835,120]
[405977770,1771487501305,-633.29531245,0.00043835,120]
[405977771,1771487501314,-509.71448251,0.00043835,120]
[405977772,1771487501323,-512.58250973,0.00043835,120]
[405977773,1771487501332,-220.60580278,0.00043835,120]
[405977774,1771487501340,-504.07416975,0.00043835,120]
[405977775,1771487501350,-499.41784575,0.00043835,120]
[405977776,1771487501359,-519.46235974,0.00043835,120]
[405977777,1771487501368,-500.0,0.00043835,120]
[405977778,1771487501377,-630.24753706,0.00043835,120]
[405977779,1771487501386,-517.53795482,0.00043835,120]
[405977780,1771487501395,-510.39115461,0.00043835,120]
[405977781,1771487501405,-571.83492695,0.00043835,120]
[405977782,1771487501414,-509.70670847,0.00043835,120]
[405977783,1771487501423,-502.68071296,0.00043835,120]
[405977784,1771487501432,-483.06573704,0.00043835,120]
[405977785,1771487501441,-500.0,0.00043835,120]
[405977786,1771487501450,-467.40811402,0.00043835,120]
[405977787,1771487501459,-520.56416906,0.00043835,120]
[405977788,1771487501468,-512.2648403,0.00043835,120]
[405977789,1771487501477,-511.79013352,0.00043835,120]
[405977790,1771487501487,-516.62725603,0.00043835,120]
[405977791,1771487501496,-511.37267739,0.00043835,120]
[405977792,1771487501505,-510.14184613,0.00043835,120]
[405977793,1771487501514,-306.89892291,0.00043835,120]
[405977794,1771487501523,-487.98718931,0.00043835,120]
[405977795,1771487501532,-504.32117812,0.00043835,120]
[405977796,1771487501541,-517.22071442,0.00043835,120]
[405977797,1771487501550,-522.35003099,0.00043835,60]
[405977798,1771487501560,-519.38303739,0.00043835,120]
[405977799,1771487501569,-500.0,0.00043835,120]
[405977800,1771487501578,-293.12685968,0.00043835,120]
[405977801,1771487501587,-525.48967267,0.00043835,120]
[405977802,1771487501596,-527.31982074,0.00043835,120]
[405977803,1771487501605,-505.98131532,0.00043835,120]
[405977804,1771487501614,-245.73287512,0.00043835,120]
[405977805,1771487501624,-212.94327129,0.00043835,120]
[405977806,1771487501633,-274.1409858,0.00043835,120]
[405977807,1771487501642,-178.58831825,0.00043835,120]
[405977808,1771487501652,-500.0,0.00043835,120]
[405977809,1771487501662,-266.55723648,0.00043835,120]
[405977810,1771487501671,-151.0,0.00043835,60]
[405977811,1771487501680,-221.62811111,0.00043835,120]
[405977812,1771487501689,-169.55447307,0.00043835,120]
[405977813,1771487501698,-252.30958222,0.00043835,120]
[405977814,1771487501708,-507.77013436,0.00043835,120]
[405977815,1771487501716,-318.43103534,0.00043835,120]
[405977816,1771487501726,-229.58398595,0.00043835,120]
[405977817,1771487501734,-247.15543611,0.00043835,120]
[405977818,1771487501744,-201.11429483,0.00043835,120]
[405977819,1771487501752,-381.0802951,0.00043835,120]
[405977820,1771487501762,-228.56364076,0.00043835,120]
[405977821,1771487501771,-164.81268673,0.00043835,120]
[405977822,1771487501780,-185.43693014,0.00043835,120]
[405977823,1771487501789,-175.16687466,0.00043835,120]
[405977824,1771487501797,-288.63052746,0.00043835,120]
[405977825,1771487501806,-189.72759112,0.00043835,120]
[405977826,1771487501815,-218.53095972,0.00043835,120]
[405977827,1771487501824,-198.14390907,0.00043835,120]
[405977828,1771487501835,-499.41736515,0.00043835,120]
[405977829,1771487501843,-500.0,0.00043835,120]
[405977830,1771487501852,-235.89081616,0.00043835,120]
[405977831,1771487501862,-151.26213993,0.00043835,120]
[405977832,1771487501871,-197.25577889,0.00043835,120]
[405977833,1771487501880,-150.62274865,0.00043835,120]
[405977834,1771487501889,-159.19780662,0.00043835,120]
[405977835,1771487501898,-295.37480636,0.00043835,120]
[405977836,1771487501906,-188.64116557,0.00043835,120]
[405977837,1771487501915,-209.02569351,0.00043835,120]
[405977838,1771487501924,-567.8240382,0.00043835,120]
[405977839,1771487501933,-158.26337473,0.00043835,120]
[405977840,1771487501943,-242.82906458,0.00043835,120]
[405977841,1771487501951,-335.37412365,0.00043835,120]
[405977842,1771487501960,-213.47745045,0.00043835,120]
[405977843,1771487501970,-485.4672023,0.00043835,120]
[405977844,1771487501979,-246.77901674,0.00043835,120]
[405977845,1771487501987,-240.61805034,0.00043835,120]
[405977846,1771487501996,-376.30021831,0.00043835,120]
[405977847,1771487502005,-157.04560501,0.00043835,120]
[405977848,1771487502014,-153.44605845,0.00043835,120]
[405977849,1771487502023,-206.31747142,0.00043835,120]
[405977850,1771487502032,-500.0,0.00043835,120]
[405977851,1771487502041,-177.9005847,0.00043835,120]
[405977852,1771487502050,-249.32891245,0.00043835,120]
[405977853,1771487502059,-234.73455676,0.00043835,120]
[405977854,1771487502068,-186.54793174,0.00043835,60]
[405977855,1771487502078,-194.38349245,0.00043835,120]
[405977856,1771487502087,-159.92700492,0.00043835,120]
[405977857,1771487502096,-500.0,0.00043835,120]
[405977858,1771487502106,-160.68867786,0.00043835,120]
[405977859,1771487502118,-500.0,0.00043835,120]
[405977860,1771487502127,-620.08000257,0.00043835,120]
[405977861,1771487502136,-500.0,0.00043835,120]
[405977862,1771487502145,-500.0,0.00043835,120]
[405977863,1771487502154,-544.16197173,0.00043835,120]
[405977864,1771487502166,-356.28322879,0.00043835,120]
[405977865,1771487502176,-156.97579243,0.00043835,120]
[405977866,1771487502187,-153.59072105,0.00043835,120]
[405977867,1771487502196,-240.51843901,0.00043835,120]
[405977868,1771487502206,-473.96738845,0.00043835,120]
[405977869,1771487502216,-261.31050625,0.00043835,120]
[405977870,1771487502225,-299.27447175,0.00043835,120]
[405977871,1771487502234,-154.84613351,0.00043835,120]
[405977872,1771487502243,-500.0,0.00043835,120]
[405977873,1771487502253,-533.63548735,0.00043835,120]
[405977874,1771487502262,-164.51532373,0.00043835,120]
[405977875,1771487502271,-195.8324056,0.00043835,120]
[405977876,1771487502280,-623.54674144,0.00043835,120]
[405977877,1771487502289,-223.98638795,0.00043835,120]
[405977878,1771487502298,-184.86934601,0.00043835,120]
[405977879,1771487502309,-201.33312049,0.00043835,120]
[405977880,1771487502319,-500.0,0.00043835,120]
[405977881,1771487502329,-300.8811637,0.00043835,120]
[405977882,1771487502339,-337.47419132,0.00043835,120]
[405977883,1771487502348,-161.18546112,0.00043835,120]
[405977884,1771487502357,-232.29650202,0.00043835,120]
[405977885,1771487502366,-163.78215997,0.00043835,120]
[405977886,1771487502375,-257.9291345,0.00043835,120]
[405977887,1771487502384,-277.6247953,0.00043835,120]
[405977888,1771487502393,-157.18149098,0.00043835,120]
[405977889,1771487502402,-272.60312435,0.00043835,120]
[405977890,1771487502411,-183.70403511,0.00043835,120]
[405977891,1771487502420,-579.59593902,0.00043835,120]
[405977892,1771487502429,-302.82712815,0.00043835,120]
[405977893,1771487502438,-168.21189628,0.00043835,120]
[405977894,1771487502447,-356.65917532,0.00043835,120]
[405977895,1771487502456,-176.68855805,0.00043835,120]
[405977896,1771487502465,-242.26132981,0.00043835,120]
[405977897,1771487502475,-609.77395517,0.00043835,120]
[405977898,1771487502484,-171.41934814,0.00043835,120]
[405977899,1771487502493,-150.10702406,0.00043835,120]
[405977900,1771487502502,-332.94008509,0.00043835,120]
[405977901,1771487502512,-189.72843429,0.00043835,120]
[405977902,1771487502521,-282.98840373,0.00043835,120]
[405977903,1771487502530,-427.49699861,0.00043835,120]
[405977904,1771487502543,-424.0231465,0.00043835,120]
[405977905,1771487502552,-543.77542598,0.00043835,120]
[405977906,1771487502561,-179.99634991,0.00043835,120]
[405977907,1771487502570,-239.05463193,0.00043835,120]
[405977908,1771487502580,-296.17770558,0.00043835,120]
[405977909,1771487502590,-240.7227329,0.00043835,120]
[405977910,1771487502599,-218.01442986,0.00043835,120]
[405977911,1771487502608,-500.0,0.00043835,120]
[405977912,1771487502617,-500.0,0.00043835,120]
[405977913,1771487502627,-500.0,0.00043835,120]
[405977914,1771487502636,-500.0,0.00043835,120]
[405977915,1771487502755,-500.0,0.00043835,120]
[405977916,1771487502765,-500.0,0.00043835,120]